Cogmind - Beta 13 @@@ ROGUE MODE // 2024.06.29 @ 13:46:15 Player: RAT Result: Destroyed by Y-54 Guardian with Flak Gun Performance ------------- Evolutions (3) 1500 Regions Visited (4) 800 Robots Destroyed (36) 180 Value Destroyed (994) 994 Prototype IDs (2) 40 Alien Tech Used (0) 0 Bonus (0) 0 TOTAL SCORE: 3514 Bonus ------- None Cogmind --------- Core Integrity 0/700 Matter 32/300 Energy 99/100 System Corruption 0% Temperature Warm (158) Movement Core (250) Ox4 Location -7/Factory Parts ------- > --- POWER (3) -------- (None) > --- PROPULSION (3) --- (None) > --- UTILITY (4) ------ Medium Storage Unit > --- WEAPON (3) ------- Improved Assault Rifle > --- INVENTORY (10) --- (None) Peak State ------------ > --- POWER ------------ Light Ion Engine Heavy Ion Engine Micro Nuclear Core > --- PROPULSION ------- Light Treads > --- UTILITY ---------- Medium Storage Unit Structural Scanner Terrain Scanner > --- WEAPON ----------- Improved Assault Rifle Grenade Launcher Missile Launcher > --- INVENTORY -------- Ion Engine Light Nuclear Core Improved Assault Rifle Improved Light Cannon Grenade Launcher [Rating: 20] Favorites ----------- Power Light Ion Engine Engine Light Ion Engine Power Core Micro Nuclear Core Propulsion Light Treads Treads Light Treads Leg Aluminum Leg Utility Medium Storage Unit Device Terrain Scanner Storage Medium Storage Unit Processor Signal Interpreter Protection Power Shielding Weapon Improved Light Cannon Energy Gun Gatling Laser Ballistic Gun Improved Assault Rifle Ballistic Cannon Improved Light Cannon Launcher Grenade Launcher Build | -11 -10 -9 -8 -7 ------- Run | Yrd Mat Mat Mat Fac Slots Evolved 6 | . . 2 2 2 Power 2 | . . . 1 1 Propulsion 1 | . . 1 . . Utility 2 | . . 1 . 1 Weapon 1 | . . . 1 . Parts Attached 38 | 7 12 4 5 10 Power 9 | 1 1 . 2 5 Engine 7 | 1 1 . 2 3 Core 2 | . . . . 2 Reactor . | . . . . . Propulsion 6 | 2 4 . . . Treads 2 | . 2 . . . Leg 4 | 2 2 . . . Wheel . | . . . . . Hover . | . . . . . Flight . | . . . . . Utility 9 | 2 5 1 1 . Device 5 | 1 2 1 1 . Storage 2 | 1 1 . . . Processor 1 | . 1 . . . Hackware . | . . . . . Protection 1 | . 1 . . . Artifact . | . . . . . Weapon 14 | 2 2 3 2 5 Energy Gun 4 | 2 . . . 2 Energy Cannon . | . . . . . Ballistic Gun 2 | . . . 1 1 Ballistic Cannon 4 | . 2 1 . 1 Launcher 4 | . . 2 1 1 Special Weapon . | . . . . . Impact Weapon . | . . . . . Slashing Weapon . | . . . . . Piercing Weapon . | . . . . . Special Melee Weapon . | . . . . . Unidentified Prototypes 2 | . . . 2 . Parts Lost 19 | . 1 1 2 15 Power 6 | . . . 1 5 Propulsion 2 | . . . 1 1 Utility 3 | . 1 . . 2 Weapon 8 | . . 1 . 7 Highest Loss Streak 7 | . 1 1 2 7 To Critical Strikes 1 | . . . 1 . Average Slot Usage (%) 77 | . 99 77 78 54 Engine 12 | . 14 11 13 10 Core 1 | . . . . 4 Treads 7 | . . 22 13 3 Leg 9 | . 27 . . . Device 13 | . 15 11 18 9 Storage 6 | . . 11 9 7 Processor 2 | . 6 . . . Protection 1 | . 4 . . . Energy Gun 1 | . 3 . . 2 Ballistic Gun 2 | . . . 6 4 Ballistic Cannon 11 | . 24 13 4 . Launcher 7 | . . 7 13 10 Naked Turns . | . . . . . Heaviest Build 41 | 12 24 24 37 41 Greatest Support 40 | 20 40 40 40 20 Greatest Overweight (x) 12 | . . . 1 12 Average Overweight (x) . | . . . . 3 Largest Inventory Capacity 10 | 8 10 10 10 10 Average Capacity 8 | 5 5 10 10 10 Most Carried 7 | 5 5 4 5 7 Average Carried 4 | 3 4 1 4 5 Final Capacity 10 | 8 10 10 10 10 Final Carried 5 | 3 2 3 5 . Class Distribution -------------------- 69% | Mutant 19% | Scavenger-Skirmisher 9% | Skirmisher Dominant Class ---------------- Mutant | -10/Materials Mutant | -9/Materials Skirmisher | -8/Materials Scavenger-Skirmisher | -7/Factory Resources | -11 -10 -9 -8 -7 ----------- Run | Yrd Mat Mat Mat Fac Matter Collected 822 | 255 258 179 65 65 Remotely 276 | . 32 179 65 . Salvage Created 888 | 80 238 269 181 120 Parts 72 | 5 19 25 12 11 Haulers Intercepted 3 | . 1 1 1 . Recyclers Shooed 2 | . . 1 1 . Parts Field Recycled . | . . . . . Retrieved Matter . | . . . . . Parts Self-Destructed . | . . . . . Prevented . | . . . . . Kills | -11 -10 -9 -8 -7 ------- Run | Yrd Mat Mat Mat Fac Combat Hostiles Destroyed 24 | . 8 8 6 2 Guns 2 | . . . . 2 Cannons 12 | . 8 4 . . AOE 10 | . . 4 6 . Classes Destroyed 11 | 2 5 2 2 . Worker 3 | . 1 2 . . Builder 2 | . . 1 . 1 Tunneler 1 | 1 . . . . Hauler 3 | . 1 1 1 . Recycler 1 | 1 . . . . Watcher 2 | . 2 . . . Swarmer 4 | . 3 1 . . Grunt 15 | . 5 6 4 . Duelist 1 | . . 1 . . Sentry 3 | . . . 1 2 Hunter 1 | . . . 1 . Best Kill Streak 7 | 2 7 4 5 2 Combat Bots Only 5 | . 5 3 5 1 Max Kills in Single Turn 3 | 1 1 3 3 1 Gunslinging . | . . . . . Exploded 3 | . . 2 3 . Melee . | . . . . . Uniques/NPCs Destroyed . | . . . . . Combat | -11 -10 -9 -8 -7 -------- Run | Yrd Mat Mat Mat Fac Hostile Shots Fired 505 | . 54 67 15 369 Missed 192 | . 12 27 5 148 Damage Taken 2947 | 35 483 459 249 1721 Core 914 | 35 93 51 32 703 Absorbed by Shields . | . . . . . Redirected to Shielding 12 | . 12 . . . Core Remaining (%) 78 | 86 48 87 94 . Volleys Fired 75 | 4 29 25 4 13 Largest 3 | 2 2 2 3 2 Hottest 160 | 80 78 78 89 160 Shots Fired 138 | 8 58 41 11 20 Gun 28 | 8 . . 3 17 Cannon 89 | . 58 29 1 1 Launcher 21 | . . 12 7 2 Special . | . . . . . Kinetic 98 | . 58 29 4 7 Thermal 15 | 4 . . . 11 Explosive 21 | . . 12 7 2 Electromagnetic 4 | 4 . . . . Robot Hit Streak 11 | 4 6 7 3 11 Robot Miss Streak 7 | 2 7 3 2 3 Penetration Max . | . . . . . Secondary Targets . | . . . . . Shots Hit Robots 78 | 6 29 21 3 19 Core Hits 62 | 3 13 19 15 12 Critical Kills . | . . . . . Critical Parts Destroyed . | . . . . . Critical Strikes . | . . . . . Melee Attacks . | . . . . . Impact . | . . . . . Slashing . | . . . . . Piercing . | . . . . . Sneak Attacks . | . . . . . Combat Hostiles . | . . . . . Follow-up Attacks . | . . . . . Damage Inflicted 2698 | 92 681 895 604 426 Guns 408 | 69 . . 17 322 Cannons 1076 | . 681 358 15 22 Explosions 1214 | 23 . 537 572 82 Melee . | . . . . . Ramming . | . . . . . Kinetic 1163 | . 681 358 32 92 Thermal 305 | 53 . . . 252 Explosive 1191 | . . 537 572 82 Electromagnetic 39 | 39 . . . . Impact . | . . . . . Slashing . | . . . . . Piercing . | . . . . . Highest Corruption 1 | . . . 1 . Average Corruption 1 | . . . 1 . Corruption Purged . | . . . . . Corruption Blocked . | . . . . . Overload Shots . | . . . . . Overflow Damage 51 | . 6 25 13 7 Projectiles 25 | . 6 19 . . Explosions 26 | . . 6 13 7 Melee . | . . . . . Knockbacks 16 | . 13 3 . . Impact . | . . . . . Kinetic 13 | . 11 2 . . Secondary 3 | . 2 1 . . Self-Inflicted Damage 208 | 35 . 32 90 51 Shots 7 | 1 . 3 2 1 Rammed . | . . . . . Targets Rammed . | . . . . . Kicked . | . . . . . Crushed . | . . . . . Highest Temperature 328 | 48 208 32 60 328 Average Temperature 73 | 25 76 10 28 159 Received Heat Transfer 873 | . 219 120 90 444 Siege Activations . | . . . . . Robots Corrupted . | . . . . . Combat Hostiles . | . . . . . Parts Fried . | . . . . . Impact Corruptions . | . . . . . Robots Melted . | . . . . . Combat Hostiles . | . . . . . Parts Melted . | . . . . . Heat Transferred 700 | 125 . . . 575 Parts Sabotaged . | . . . . . Parts Stolen . | . . . . . Parts Stripped . | . . . . . Power Chain Reactions 1 | 1 . . . . Alert | -11 -10 -9 -8 -7 ------- Run | Yrd Mat Mat Mat Fac Peak Influence 397 | 10 204 356 397 195 Initial 180 | . 6 33 150 180 Average 144 | 3 61 222 282 130 Maximum Alert Level 1 | . 1 1 1 . Low Security (%) 73 | 100 92 39 16 100 Level 1 26 | . 7 60 83 . Level 2 . | . . . . . Level 3 . | . . . . . Level 4 . | . . . . . Level 5 . | . . . . . High Security . | . . . . . Max Security . | . . . . . Squads Dispatched 6 | . 1 2 2 1 Investigation 2 | . . 1 1 . Extermination . | . . . . . Reinforcement 4 | . 1 1 1 1 Assault . | . . . . . Garrison . | . . . . . Intercept . | . . . . . Searches Triggered . | . . . . . Construction Impeded 1 | . . . . 1 Haulers Reinforced . | . . . . . Active Scanning Responses . | . . . . . Cargo Convoy Interrupts . | . . . . . Stealth | -11 -10 -9 -8 -7 --------- Run | Yrd Mat Mat Mat Fac Distress Signals 5 | . 3 2 . . Communications Jammed . | . . . . . Distress Signals . | . . . . . Times Spotted 35 | . 12 13 7 3 Peak Tracking Total 7 | . 5 7 5 2 Tactical Retreats 2 | . . 2 . . Traps | -11 -10 -9 -8 -7 ------- Run | Yrd Mat Mat Mat Fac Traps Triggered 3 | . . 1 2 . Indirectly . | . . . . . Trap Hack Attempts . | . . . . . Triggered . | . . . . . Disarmed . | . . . . . Reprogrammed . | . . . . . Reused . | . . . . . Traps Extracted . | . . . . . Installed . | . . . . . Triggered . | . . . . . Machines | -11 -10 -9 -8 -7 ---------- Run | Yrd Mat Mat Mat Fac Machines Disabled 6 | . 2 . 4 . Max in Single Turn 2 | . 1 . 2 . Machines Repaired . | . . . . . Machines Dismantled . | . . . . . Machines Sabotaged . | . . . . . Overloaded Fab Kills . | . . . . . Hacking | -11 -10 -9 -8 -7 --------- Run | Yrd Mat Mat Mat Fac Machines Accessed . | . . . . . Terminals . | . . . . . Fabricators . | . . . . . Repair Stations . | . . . . . Recycling Units . | . . . . . Scanalyzers . | . . . . . Garrison Access . | . . . . . Total Hacks . | . . . . . Successful . | . . . . . Failed . | . . . . . Catastrophic . | . . . . . Database Lockouts . | . . . . . Manual . | . . . . . Terminals . | . . . . . Fabricators . | . . . . . Repair Stations . | . . . . . Recycling Units . | . . . . . Scanalyzers . | . . . . . Garrison Access . | . . . . . Terminal Hacks . | . . . . . Fabricator Hacks . | . . . . . Repair Station Hacks . | . . . . . Recycling Unit Hacks . | . . . . . Scanalyzer . | . . . . . Garrison Access Hacks . | . . . . . Unauthorized Hacks . | . . . . . Terminals . | . . . . . Fabricators . | . . . . . Repair Stations . | . . . . . Recycling Units . | . . . . . Scanalyzers . | . . . . . Garrison Access . | . . . . . Data Cores Recovered . | . . . . . Used . | . . . . . Hacking Detections . | . . . . . Full Trace Events . | . . . . . Feedback Events . | . . . . . Feedback Blocked . | . . . . . Robot Schematics Acquired . | . . . . . Robots Built . | . . . . . Authchips . | . . . . . Time . | . . . . . Total Robot Build Rating . | . . . . . Part Schematics Acquired . | . . . . . Parts Built . | . . . . . Authchips . | . . . . . Time . | . . . . . Total Part Build Rating . | . . . . . Parts Repaired . | . . . . . Time . | . . . . . Parts Recycled . | . . . . . Recycled Matter . | . . . . . Retrieved Matter . | . . . . . Retrieved Components . | . . . . . Parts Scanalyzed . | . . . . . Part Schematics Acquired . | . . . . . Parts Damaged . | . . . . . Bothacking | -11 -10 -9 -8 -7 ------------ Run | Yrd Mat Mat Mat Fac Used RIF Installer . | . . . . . Robots Hacked . | . . . . . Non-combat . | . . . . . Combat . | . . . . . Robot Hacks Applied . | . . . . . Relay Couplers Released . | . . . . . Fabnet Peak Effective % . | . . . . . Robots Rewired . | . . . . . Allies Hacked . | . . . . . Hacks Repelled . | . . . . . Allies | -11 -10 -9 -8 -7 -------- Run | Yrd Mat Mat Mat Fac Total Allies . | . . . . . Largest Group . | . . . . . Highest-Rated Group . | . . . . . Highest-Rated Ally . | . . . . . Total Orders . | . . . . . Ally Attacks . | . . . . . Total Damage . | . . . . . Kills . | . . . . . Allies Corrupted . | . . . . . Allies Melted . | . . . . . Intel | -11 -10 -9 -8 -7 ------- Run | Yrd Mat Mat Mat Fac Robot Analysis Total . | . . . . . Derelict Logs Recovered . | . . . . . Drone Launches . | . . . . . Drone Recoveries . | . . . . . Exploration | -11 -10 -9 -8 -7 ------------- Run | Yrd Mat Mat Mat Fac Turns Passed 1761 | 73 566 283 308 531 Spaces Moved 801 | 49 338 122 140 152 Core 75 | 17 . . . 58 Treads 366 | . 10 122 140 94 Legs 360 | 32 328 . . . Wheels . | . . . . . Hover . | . . . . . Flight . | . . . . . Fastest Speed 50 | 50 120 160 160 200 Average Speed 174 | 95 121 160 191 316 Slowest Speed 650 | 120 160 160 240 650 Overloaded Moves . | . . . . . Propulsion Burnouts . | . . . . . Robots Hopped . | . . . . . Cave-ins Triggered . | . . . . . Exploration Rate (%) 22 | 4 66 15 22 6 Regions Visited 4 Branch Regions . Pre-discovered Areas . | . . . . . Known Exits Taken . | . . . . . Unknown Exits Taken 4 | 1 1 1 1 . Scrap Searched . | . . . . . Spaces Dug . | . . . . . Terrain Destroyed 172 | 6 3 84 64 15 Melee . | . . . . . Projectile 4 | . 3 1 . . AOE 168 | 6 . 83 64 15 Terrain Rammed . | . . . . . Walls Destroyed . | . . . . . Machines Disabled . | . . . . . Actions | -11 -10 -9 -8 -7 --------- Run | Yrd Mat Mat Mat Fac Total 1019 | 65 436 168 171 179 Wait 69 | . 37 15 17 . Move 797 | 48 337 121 139 152 Hop . | . . . . . Pick Up 29 | 6 11 3 5 4 Fast Attach 4 | 4 . . . . Attach 18 | 3 1 2 3 9 Detach . | . . . . . Swap 16 | . 11 2 2 1 Drop 11 | . 10 . 1 . Fire 75 | 4 29 25 4 13 Melee . | . . . . . Ram . | . . . . . Kick . | . . . . . Crush . | . . . . . Escape Stasis . | . . . . . Rewire . | . . . . . Trap . | . . . . . Miscellaneous . | . . . . . Route ------- -11/Scrapyard -10/Materials (discovered 2 exits: [*Mat x2]) -9/Materials -8/Materials -7/Factory History --------- Turn | Location | Event 7 | -11/Scrapyard | Discovered new exit (range 15) 74 | -11/Scrapyard | Entered Materials 308 | -10/Materials | Build established: Mutant 319 | -10/Materials | Discovered new exit (range 5) 514 | -10/Materials | Core integrity fell below 50% 576 | -10/Materials | Discovered new exit (range 16) 640 | -10/Materials | Entered another Materials area 640 | -9/Materials | Evolved 2 slots: Propulsion x1, Utility x1 799 | -9/Materials | Discovered new exit (range 15) 923 | -9/Materials | Entered another Materials area 923 | -8/Materials | Evolved 2 slots: Power x1, Weapon x1 1171 | -8/Materials | Discovered new exit (range 9) 1231 | -8/Materials | Entered Factory 1231 | -7/Factory | Evolved 2 slots: Power x1, Utility x1 1597 | -7/Factory | Core integrity fell below 50% 1612 | -7/Factory | Lost 7 parts (3p2u2w) 1745 | -7/Factory | Core integrity fell below 20% 1762 | -7/Factory | Destroyed by Y-54 Guardian with Flak Gun Last Messages --------------- 01660_ U-05 Engineer lays Concrete. 01666_ U-05 Engineer builds a Wall. 01668_ U-05 Engineer lays Concrete. 01673_ U-05 Engineer builds a Wall. 01674_ U-05 Engineer lays Concrete. 01680_ U-05 Engineer builds a Wall. 01681_ U-05 Engineer lays Concrete. 01687_ U-05 Engineer builds a Door. 01688_ U-05 Engineer lays Concrete. 01722_ Grenade Launcher destroyed. 01724_ Ion Engine destroyed. 01743_ Y-54 Guardian heat short circuits Imp. Deuterium Engine. 01747_ Y-54 Guardian heat spikes uncontrollably. 01747_ Gatling Laser destroyed. 01747_ Lgt. Nuclear Core destroyed. 01748_ Y-54 Guardian heat damages core (-15). 01750_ Gatling Laser destroyed. 01753_ Imp. Light Cannon destroyed. 01760_ Y-54 Guardian destroyed. Map ----- +----------------------------------------------------+ | ##????????????? | | ##????????????? | | ##????????????? | | ################ ## +# #####+#####???????????? | | ############## # !##???????????? | | ???????##????### # [ ####?????????? | | ??????????????## # ##?????????? | | ?????????????### ### # ##?????????? | | ?????????????### ### # ##?????????? | | ?????????????### ### # ###????????? | | ??????????? ?? # # ##????????? | | ???????????? # # # ###????????? | | ???????????? # # # ##????????? | | ???????????? # = # # #?????????? | | ???????????? + + #?????????? | | ???????????? # # #?????????? | | ???????????? # #####" ##?????????? | | ??????????????? ##### # #??????????? | | ???????????????????????????# ## # #??????????? | | ??????????????####+#########+########?#??????????? | | ?????????????# [*%%[ #???????????????????? | | ?????????????????""""!]] T #???????????????????? | | ?????????????????""""=]] #???????????????????? | | ?????????????????"""" #???????????????????? | | ???????????????"""""" #???????????????????? | | ?????????????# @ #???????????????????? | | ?????????????# #???????????????????? | | ?????????????# #???????????????????? | | ????????????# Y #???????????????????? | | ????????????## #???????????????????? | | ?????????????#################???????????????????? | | | | | | | | | | | | | | | | | | | | | | | | | | | | | | | | | | | | | | | +----------------------------------------------------+ Best States ------------- Heat Dissipation 34 Energy Generation 20 Energy Capacity 400 Matter Stores 285 Matter Capacity 300 Sight Range 16 Robot Scan Range 14 Terrain Scan Range 14 Terrain Scan Density 10 Power Shielding 33 Evasion (%) 55 Recoil Reduction 2 Item Schematics ----------------- None Robot Schematics ------------------ None Fabricated ------------ Nothing Alien Tech Used ----------------- None Achievements -------------- Use The Force Challenges ------------ None Game ------ Seed RainbowHybridDesublimator Manual? 0 Play Time 00:19:31 Cumulative 13.2 hours Start 2024.06.29 @ 13:28:35 End 2024.06.29 @ 13:46:15 Sessions 1 Manual Loads 0 Difficulty Rogue Special Mode None Game No. 61 Rogue 61 Adventurer 0 Explorer 0 Win Type - Total 0 Types 0/0/0/0/0/0/0/0/0 Lore% 5 Gallery% 18 Achievement% 13 Wizard Run 0 Options --------- Layout 1 ASCII 0 Keyboard 0 Movement Mouse Keybinds 0 Fullscreen 1 Font 24/Smallcaps Map View 50x35 Zoom Use 0% Tactical HUD 1 Map Filters NONE Filters NONE Steam 1 RUN: ea4b7dfc-8377-48c1-b64e-7d8b8f278523